bitfinex/quotes_BTCUSD_20240703
["timestamp","ask_amount","ask_price","bid_price","bid_amount"]
[1719994335274,0.52428,60908.0,60907.0,0.20572868]
[1719994336027,0.52428,60908.0,60907.0,0.1882988]
[1719994337857,0.52428,60908.0,60907.0,0.3816988]
[1719994341054,0.52428,60908.0,60907.0,0.2882988]
[1719994341261,0.82428,60908.0,60907.0,0.128]
[1719994342017,0.82428,60908.0,60907.0,0.3944988]
[1719994342018,0.00838,60908.0,60907.0,0.3944988]
[1719994342200,0.00838,60908.0,60907.0,0.3804988]
[1719994342636,0.00838,60908.0,60907.0,0.3944988]
[1719994342968,0.00838,60908.0,60907.0,0.3804988]
[1719994343504,0.00838,60908.0,60907.0,0.3944988]
[1719994345318,0.007561,60908.0,60907.0,0.3944988]
[1719994345879,0.007561,60908.0,60907.0,0.3010988]
[1719994347968,0.007561,60908.0,60907.0,1.0367988]
[1719994348174,0.007561,60908.0,60907.0,1.0227988]
[1719994348368,0.00735159,60908.0,60907.0,1.0227988]
[1719994348569,0.00735159,60908.0,60907.0,1.0367988]
[1719994349010,0.00735159,60908.0,60907.0,1.0227988]
[1719994349370,0.00735159,60908.0,60907.0,1.0367988]
[1719994351268,0.00735159,60908.0,60907.0,1.1994988]
[1719994351471,0.00735159,60908.0,60907.0,1.79550834]
[1719994351701,0.00735159,60908.0,60907.0,2.12387734]
[1719994352483,0.00735159,60908.0,60907.0,2.10987734]
[1719994352865,0.00735159,60908.0,60907.0,2.12387734]
[1719994353066,0.00735159,60908.0,60907.0,2.10987734]
[1719994353450,0.00735159,60908.0,60907.0,2.12387734]
[1719994354715,0.00735159,60908.0,60907.0,1.79550834]
[1719994356320,0.00735159,60908.0,60907.0,2.12387734]
[1719994356542,0.00735159,60908.0,60907.0,1.89037734]
[1719994356765,0.00735159,60908.0,60907.0,2.12387734]
[1719994356974,0.00735159,60908.0,60907.0,2.45224634]
[1719994357174,0.002,60909.0,60908.0,1.23520254]
[1719994357403,0.002,60909.0,60908.0,1.6118044]
[1719994357536,0.002,60909.0,60908.0,1.9401684]
[1719994357944,0.002,60909.0,60908.0,2.2685324]
[1719994358485,0.002,60909.0,60908.0,1.9541684]
[1719994358987,0.002,60909.0,60908.0,1.9401684]
[1719994359196,0.002,60909.0,60908.0,1.9541684]
[1719994359613,0.002,60909.0,60908.0,1.9681684]
[1719994359838,0.002,60909.0,60908.0,2.2965324]
[1719994360249,0.002,60909.0,60908.0,2.3105324]
[1719994365908,0.002,60909.0,60908.0,2.2965324]
[1719994366321,0.4964,60932.0,60923.0,0.08045654]
[1719994366613,0.4964,60932.0,60928.0,0.3937988]
[1719994367811,0.4964,60932.0,60928.0,0.1602988]
[1719994368010,0.4964,60932.0,60928.0,0.2535988]
[1719994368216,0.4964,60932.0,60928.0,0.27088086]
[1719994368415,0.00084,60933.0,60928.0,0.36245248]
[1719994368575,0.00084,60933.0,60928.0,0.54629842]
[1719994368781,0.00084,60933.0,60928.0,0.87455442]
[1719994368982,0.00084,60933.0,60928.0,0.88855442]
[1719994369824,0.00084,60933.0,60928.0,0.56029842]
[1719994370453,0.00084,60933.0,60928.0,0.27987042]
[1719994370620,0.20666402,60929.0,60928.0,0.1882988]
[1719994373670,0.49186402,60929.0,60928.0,0.1882988]
[1719994379888,0.00084,60933.0,60928.0,0.4216988]
[1719994380087,0.00084,60933.0,60930.0,0.1602988]
[1719994380530,0.00084,60933.0,60931.0,0.00328177]
[1719994380740,0.00084,60933.0,60932.0,0.20769384]
[1719994382139,0.00084,60933.0,60932.0,0.22169384]
[1719994382557,0.00084,60933.0,60932.0,0.20769384]
[1719994382950,0.00084,60933.0,60932.0,0.1742988]
[1719994383754,0.00084,60933.0,60932.0,0.1882988]
[1719994383985,0.52174,60933.0,60932.0,0.1882988]
[1719994385324,0.82369358,60933.0,60932.0,0.014]
[1719994385538,0.82369358,60933.0,60932.0,0.028]
[1719994385539,1.17323704,60933.0,60932.0,0.028]
[1719994385742,1.14323704,60933.0,60932.0,0.028]
[1719994385944,1.17323704,60933.0,60932.0,0.028]
[1719994386137,1.17323704,60933.0,60932.0,0.014]
[1719994386339,1.17323704,60933.0,60932.0,0.028]
[1719994387183,0.4989,60926.0,60921.0,0.4676]
[1719994387383,0.4989,60926.0,60922.0,0.1602988]
[1719994388847,0.7989,60926.0,60922.0,0.1602988]
[1719994389611,0.516,60926.0,60922.0,0.1602988]
[1719994389879,0.516,60926.0,60922.0,0.1742988]
[1719994389880,0.2881,60925.0,60922.0,0.1742988]
[1719994390238,0.2881,60925.0,60922.0,0.1882988]
[1719994390448,0.3,60924.0,60922.0,0.1882988]
[1719994390665,0.2881,60925.0,60922.0,0.1882988]
[1719994390866,0.2881,60925.0,60922.0,0.1742988]
[1719994391250,0.2881,60925.0,60922.0,0.1882988]
[1719994394072,0.2145,60923.0,60922.0,0.1882988]
[1719994396369,0.2145,60923.0,60922.0,0.1602988]
[1719994396587,0.2145,60923.0,60922.0,0.1742988]
[1719994396787,0.2145,60923.0,60922.0,0.1882988]
[1719994397157,0.2145,60923.0,60922.0,0.21202566]
[1719994397929,0.2145,60923.0,60922.0,0.1882988]
[1719994399947,0.23,60926.0,60922.0,0.1882988]
[1719994400147,0.23,60926.0,60922.0,0.23726859]
[1719994400997,0.23,60926.0,60922.0,0.22326859]
[1719994401432,0.23,60926.0,60922.0,0.22419259]
[1719994401829,0.23,60926.0,60923.0,0.07201926]
[1719994402051,0.23,60926.0,60924.0,0.1602988]
[1719994404022,0.23,60926.0,60924.0,0.1742988]
[1719994404616,0.23,60926.0,60924.0,0.1882988]
[1719994406903,0.221,60928.0,60924.0,0.1882988]
[1719994407907,0.2,60932.0,60924.0,0.26297381]
[1719994408245,0.1,60931.0,60924.0,0.2979436]
[1719994408445,0.1,60931.0,60924.0,0.23626859]
[1719994409056,0.4,60931.0,60924.0,0.23626859]
[1719994409222,0.1,60931.0,60924.0,0.22226859]
[1719994409368,0.1,60931.0,60924.0,0.23326859]
[1719994409572,0.1,60931.0,60924.0,0.30587663]
[1719994409573,0.4,60931.0,60924.0,0.30587663]
[1719994409790,0.3,60928.0,60924.0,0.22026859]
[1719994410006,0.03195358,60929.0,60924.0,0.22026859]
[1719994410007,0.216,60925.0,60924.0,0.22826859]
[1719994410402,0.216,60925.0,60924.0,0.22026859]
[1719994410832,0.216,60925.0,60924.0,0.22926859]
[1719994411210,0.216,60925.0,60924.0,0.22026859]
[1719994411573,0.216,60925.0,60924.0,0.23426859]
[1719994411994,0.216,60925.0,60924.0,0.22326859]
[1719994412366,0.216,60925.0,60924.0,0.23726859]
[1719994412542,0.216,60925.0,60924.0,0.22326859]
[1719994412927,0.216,60925.0,60924.0,0.23726859]
[1719994415258,0.216,60925.0,60924.0,0.1882988]
[1719994418614,0.516,60925.0,60924.0,0.1882988]
[1719994418947,0.216,60925.0,60924.0,0.1882988]
[1719994420336,0.516,60925.0,60924.0,0.1882988]
[1719994420544,0.216,60925.0,60924.0,0.1882988]
[1719994425264,0.2695,60927.0,60924.0,0.1882988]
[1719994425498,0.4802,60927.0,60924.0,0.1882988]
[1719994425654,0.4802,60927.0,60924.0,0.20722108]
[1719994425827,0.2107,60927.0,60924.0,0.20722108]
[1719994426039,0.2107,60927.0,60924.0,0.1882988]
[1719994426245,0.2107,60927.0,60924.0,0.1742988]
[1719994426453,0.2107,60927.0,60924.0,0.1882988]
[1719994427053,0.2107,60927.0,60924.0,0.1742988]
[1719994427254,0.2107,60927.0,60924.0,0.1882988]
[1719994428461,0.224,60929.0,60924.0,0.1882988]
[1719994429718,0.224,60929.0,60924.0,0.23748703]
[1719994429918,0.224,60929.0,60924.0,0.20948703]
[1719994430122,0.224,60929.0,60924.0,0.22348703]
[1719994430327,0.224,60929.0,60924.0,0.23548703]
[1719994433210,0.2864,60930.0,60924.0,0.23548703]
[1719994433662,0.2864,60930.0,60924.0,0.1862988]
[1719994434163,0.2864,60930.0,60924.0,0.1872228]
[1719994434370,0.00084,60929.0,60924.0,0.1872228]
[1719994434572,0.00084,60929.0,60924.0,0.1732228]
[1719994434913,0.00084,60929.0,60924.0,0.2666228]
[1719994435269,0.00084,60929.0,60924.0,0.34339311]
[1719994435448,0.00084,60929.0,60924.0,0.35439311]
[1719994435984,0.00084,60929.0,60924.0,0.24999311]
[1719994436288,0.00084,60929.0,60924.0,0.1732228]
[1719994436839,0.00084,60929.0,60924.0,0.1872228]
[1719994442141,0.5702,60927.0,60924.0,0.1872228]
[1719994442340,0.2702,60927.0,60924.0,0.1872228]
[1719994442493,0.00084,60929.0,60924.0,0.1872228]
[1719994442923,0.00084,60929.0,60925.0,0.07039166]
[1719994443122,0.33195358,60927.0,60926.0,0.1602988]
[1719994443778,0.3,60927.0,60926.0,0.1602988]
[1719994444591,0.3,60927.0,60926.0,0.1742988]
[1719994445951,0.33195358,60927.0,60926.0,0.1882988]
[1719994448500,0.3,60927.0,60926.0,0.1882988]
[1719994449024,0.33195358,60927.0,60926.0,0.1882988]
[1719994450033,0.33195358,60927.0,60926.0,0.1880988]
[1719994454241,0.3,60927.0,60926.0,0.1880988]
[1719994456021,0.5602,60928.0,60926.0,0.1880988]
[1719994456222,0.2602,60928.0,60926.0,0.1880988]
[1719994456420,0.00084,60929.0,60926.0,0.1880988]
[1719994456628,0.30084,60929.0,60926.0,0.1880988]
[1719994456844,0.3,60927.0,60926.0,0.1600988]
[1719994457174,0.00084,60929.0,60926.0,0.1730988]
[1719994457383,0.00084,60929.0,60926.0,0.1870988]
[1719994457817,0.00084,60929.0,60926.0,0.1740988]
[1719994458194,0.30279358,60929.0,60926.0,0.1880988]
[1719994458403,0.00084,60929.0,60926.0,0.1880988]
[1719994459535,0.00084,60929.0,60926.0,0.1740988]
[1719994459978,0.00084,60929.0,60926.0,0.1600988]
[1719994460164,0.00084,60929.0,60926.0,0.1720988]
[1719994460725,0.00084,60929.0,60926.0,0.1860988]
[1719994461132,0.30084,60929.0,60926.0,0.1860988]
[1719994461684,0.00084,60929.0,60926.0,0.1860988]
[1719994463589,0.3,60927.0,60926.0,0.1860988]
[1719994463779,0.33195358,60927.0,60926.0,0.1860988]
[1719994464546,0.33195358,60927.0,60926.0,0.1740988]
[1719994464751,0.08011451,60927.0,60926.0,0.1740988]
[1719994465520,0.04816093,60928.0,60926.0,0.1740988]
[1719994465657,0.04816093,60927.0,60926.0,0.1740988]
[1719994465858,0.04816093,60928.0,60926.0,0.1878988]
[1719994466063,0.04816093,60927.0,60926.0,0.1878988]
[1719994466260,0.08011451,60927.0,60926.0,0.1598988]
[1719994466692,0.08011451,60927.0,60926.0,0.1868988]
[1719994467115,1.09275797,60927.0,60926.0,0.014]
[1719994467397,1.12275797,60927.0,60926.0,0.014]
[1719994467599,1.23316406,60927.0,60926.0,0.028]
[1719994468141,1.23316406,60927.0,60926.0,0.014]
[1719994468325,1.39856219,60927.0,60926.0,0.014]
[1719994468527,1.41216754,60927.0,60926.0,0.014]
[1719994468752,1.42559866,60927.0,60924.0,0.000924]
[1719994468960,0.99044346,60925.0,60924.0,0.000924]
[1719994469197,1.10404881,60925.0,60924.0,0.000924]
[1719994470051,1.18416332,60925.0,60924.0,0.008924]
[1719994470393,1.18416332,60925.0,60924.0,0.020924]
[1719994470738,1.18416332,60925.0,60924.0,0.012924]
[1719994471063,1.18416332,60925.0,60924.0,0.023924]
[1719994471445,1.17055797,60925.0,60924.0,0.02318705]
[1719994471646,1.18416398,60925.0,60924.0,0.02318705]
[1719994474880,1.1841642,60925.0,60924.0,0.02318705]
[1719994475295,1.1841642,60925.0,60924.0,0.01218705]
[1719994475700,1.1841642,60925.0,60924.0,0.01818705]
[1719994476229,1.1841642,60925.0,60924.0,0.01218705]
[1719994476563,1.1841642,60925.0,60924.0,0.01818705]
[1719994476823,1.1841642,60925.0,60924.0,0.00618705]
[1719994477317,1.1841642,60925.0,60924.0,0.01318705]
[1719994478064,1.17055797,60925.0,60924.0,0.01318705]
[1719994478266,1.18416444,60925.0,60924.0,0.01318705]
[1719994481640,1.18416449,60925.0,60924.0,0.01318705]
[1719994481842,1.17055797,60925.0,60924.0,0.01318705]
[1719994482040,1.18416449,60925.0,60924.0,0.01318705]
[1719994488020,1.18416452,60925.0,60924.0,0.01318705]
[1719994491443,1.18416626,60925.0,60924.0,0.01318705]
[1719994492187,0.82996626,60925.0,60924.0,0.01318705]
[1719994492387,0.61326626,60925.0,60924.0,0.01318705]
[1719994493092,0.34128341,60925.0,60924.0,0.01318705]
[1719994494588,0.32767512,60925.0,60924.0,0.01318705]
[1719994494788,0.34128341,60925.0,60924.0,0.01318705]
[1719994494988,0.32767512,60925.0,60924.0,0.01318705]
[1719994495205,0.2611705,60925.0,60924.0,0.01318705]
[1719994495590,0.30933143,60925.0,60924.0,0.51388705]
[1719994495791,0.29572154,60925.0,60924.0,0.51388705]
[1719994496675,0.30933181,60925.0,60924.0,0.51388705]
[1719994496835,0.26117088,60925.0,60924.0,0.51388705]
[1719994497033,0.29572154,60925.0,60924.0,0.51388705]
[1719994497451,0.30933181,60925.0,60924.0,0.51388705]
[1719994497855,0.29572154,60925.0,60924.0,0.51388705]
[1719994498176,0.30933226,60925.0,60924.0,0.51388705]
[1719994498965,0.29572154,60925.0,60924.0,0.51388705]
[1719994499170,0.30933195,60925.0,60924.0,0.51388705]
[1719994499371,0.26117102,60925.0,60924.0,0.72566696]
[1719994499587,0.1,60925.0,60924.0,0.81906696]
[1719994499776,0.11361348,60925.0,60924.0,0.76758585]
[1719994500091,0.1,60925.0,60924.0,0.67418585]
[1719994500295,0.10084,60925.0,60924.0,0.67418585]
[1719994500600,0.14900093,60925.0,60924.0,0.67418585]
[1719994500801,0.18095451,60925.0,60924.0,0.67418585]
[1719994501008,0.18095451,60925.0,60924.0,0.66718585]
[1719994501429,0.18095451,60925.0,60924.0,0.01418705]
[1719994501807,0.18095451,60925.0,60924.0,0.02818705]
[1719994502449,0.18095451,60925.0,60924.0,0.00018705]
[1719994502648,0.18095451,60925.0,60924.0,0.00818705]
[1719994502862,0.18095451,60925.0,60924.0,0.01818705]
[1719994503260,0.18095451,60925.0,60924.0,0.01018705]
[1719994503608,0.10084,60925.0,60924.0,0.01018705]
[1719994504137,0.00084,60925.0,60924.0,0.76876695]
[1719994504507,0.00084,60925.0,60924.0,0.79176695]
[1719994505602,0.00084,60925.0,60924.0,0.79006695]
[1719994511077,0.00084,60925.0,60924.0,0.8194754]
[1719994514718,0.00084,60925.0,60924.0,0.79006695]
[1719994516700,0.00084,60925.0,60924.0,0.74068585]
[1719994518702,0.00084,60925.0,60924.0,0.99252492]
[1719994520306,0.00084,60925.0,60924.0,0.98052492]
[1719994520708,0.00084,60925.0,60924.0,0.99452492]
[1719994521324,0.00084,60925.0,60924.0,0.98352492]
[1719994521522,0.00084,60925.0,60924.0,1.13664587]
[1719994521899,0.00084,60925.0,60924.0,1.15064587]
[1719994530374,0.00084,60925.0,60924.0,0.8988068]
[1719994530789,0.00084,60925.0,60924.0,1.15064587]
[1719994531833,0.00084,60925.0,60924.0,1.15156987]
[1719994533203,0.00084,60925.0,60924.0,1.66814726]
[1719994533438,0.00084,60925.0,60924.0,1.99642426]
[1719994533640,0.00084,60925.0,60924.0,1.66814726]
[1719994536827,0.00084,60925.0,60924.0,1.50400926]
[1719994538399,0.00084,60925.0,60924.0,1.25217019]
[1719994538599,0.00084,60925.0,60924.0,1.50400926]
[1719994539788,0.00084,60925.0,60924.0,1.09904924]
[1719994541202,0.00084,60925.0,60924.0,1.00564924]
[1719994541410,0.00084,60925.0,60924.0,1.35088831]
[1719994541862,0.00084,60925.0,60924.0,1.09904924]
[1719994542068,0.00084,60925.0,60924.0,1.35088831]
[1719994543304,0.00084,60925.0,60924.0,1.51125137]
[1719994546287,0.00084,60925.0,60924.0,1.67538937]
[1719994546438,0.00084,60925.0,60924.0,2.02666637]
[1719994546621,0.00084,60925.0,60924.0,2.35494337]
[1719994547757,0.00084,60925.0,60924.0,2.26154337]
[1719994547950,0.00084,60925.0,60924.0,2.35494337]
[1719994553134,0.00084,60925.0,60924.0,2.34094337]
[1719994553557,0.00084,60925.0,60924.0,2.35494337]
[1719994553903,0.00084,60925.0,60924.0,2.37104342]
[1719994554012,0.00084,60925.0,60924.0,2.38504342]
[1719994557273,0.19439415,60940.0,60931.0,0.52003907]
[1719994557460,0.19439415,60940.0,60939.0,0.0934]
[1719994557724,0.19439415,60940.0,60939.0,0.2536988]
[1719994558793,0.19439415,60940.0,60939.0,0.2676988]
[1719994560252,0.41239415,60940.0,60939.0,0.2536988]
[1719994560414,0.41239415,60940.0,60939.0,0.2676988]
[1719994560779,0.41239415,60940.0,60939.0,0.29446868]
[1719994560935,0.41239415,60940.0,60939.0,0.30846868]
[1719994561983,0.41239415,60940.0,60939.0,0.33066859]
[1719994562758,0.41239415,60940.0,60939.0,0.2816988]
[1719994563613,0.41323415,60940.0,60939.0,0.2816988]
[1719994563814,0.00084,60940.0,60939.0,0.2816988]
[1719994563996,0.46034,60940.0,60939.0,0.2816988]
[1719994567059,0.46034,60940.0,60939.0,0.31270902]
[1719994567264,0.00084,60940.0,60939.0,0.31270902]
[1719994567704,0.00084,60940.0,60939.0,1.03192791]
[1719994567988,0.00084,60940.0,60939.0,1.59260402]
[1719994568203,0.00084,60940.0,60939.0,1.84444309]
[1719994568788,0.00084,60940.0,60939.0,1.51624609]
[1719994569755,0.00084,60940.0,60939.0,2.22507948]
[1719994569955,0.00084,60940.0,60939.0,2.24807948]
[1719994570756,0.00084,60940.0,60939.0,2.23407948]
[1719994570974,0.00084,60940.0,60939.0,2.22007948]
[1719994571276,0.00084,60940.0,60939.0,2.24807948]
[1719994571450,0.00084,60940.0,60939.0,1.99624041]
[1719994571653,0.00084,60940.0,60939.0,1.91988248]
[1719994571895,0.00084,60940.0,60939.0,1.05934841]
[1719994572049,0.00084,60940.0,60939.0,0.93094841]
[1719994572475,0.00084,60940.0,60939.0,0.33413819]
[1719994572676,0.00084,60940.0,60939.0,0.24073819]
[1719994572886,0.26984,60940.0,60939.0,0.33413819]
[1719994574115,0.00084,60940.0,60939.0,0.33413819]
[1719994577440,0.00084,60940.0,60939.0,0.2816988]
[1719994577643,0.00084,60940.0,60939.0,0.33413819]
[1719994577879,0.00084,60940.0,60939.0,0.45299625]
[1719994581650,0.00084,60940.0,60939.0,1.64903332]
[1719994582239,0.00084,60940.0,60939.0,2.00023032]
[1719994582437,0.00084,60940.0,60939.0,2.32842732]
[1719994582632,0.00084,60940.0,60939.0,2.65662432]
[1719994582819,0.00837,60945.0,60940.0,1.45767546]
[1719994583095,0.00837,60945.0,60940.0,2.60002832]
[1719994584345,0.00837,60945.0,60940.0,2.61402832]
[1719994584951,0.00837,60945.0,60940.0,2.62802832]
[1719994585188,0.00837,60945.0,60940.0,2.80132832]
[1719994586033,0.00837,60945.0,60944.0,1.89910346]
[1719994586181,0.00837,60945.0,60944.0,2.22259083]
[1719994586786,0.00837,60945.0,60944.0,2.55076083]
[1719994587164,0.00837,60945.0,60944.0,2.56476083]
[1719994587587,0.00837,60945.0,60944.0,2.57876083]
[1719994589164,0.00284,60949.0,60948.0,1.92374846]
[1719994589350,0.00284,60949.0,60948.0,2.24941705]
[1719994590303,0.00284,60949.0,60948.0,2.26341705]
[1719994590654,0.00284,60949.0,60948.0,2.27741705]
[1719994591026,0.00284,60949.0,60948.0,2.60556505]
[1719994591228,0.00284,60949.0,60948.0,2.72442311]
[1719994594454,0.00284,60949.0,60948.0,2.66145332]
[1719994594753,0.00284,60949.0,60948.0,2.67545332]
[1719994595990,0.00284,60949.0,60948.0,2.66145332]
[1719994596372,0.00284,60949.0,60948.0,2.67545332]
[1719994597029,0.00284,60949.0,60948.0,2.70418378]
[1719994598017,0.00284,60949.0,60948.0,2.87748378]
[1719994601312,0.00284,60949.0,60948.0,2.88585378]
[1719994603098,0.00837,60954.0,60952.0,1.92199546]
[1719994603293,0.00837,60954.0,60952.0,2.40802711]
[1719994603703,0.00837,60954.0,60952.0,2.73615411]
[1719994604508,0.00837,60954.0,60952.0,2.75015411]
[1719994605706,0.00837,60954.0,60953.0,2.24650146]
[1719994605908,0.00837,60954.0,60953.0,2.42980026]
[1719994606124,0.00837,60954.0,60953.0,2.47658883]
[1719994607226,0.00837,60954.0,60953.0,2.49058883]
[1719994607422,0.00837,60954.0,60953.0,2.50458883]
[1719994608219,0.4828,60967.0,60966.0,0.25183907]
[1719994608417,0.4828,60967.0,60966.0,0.85450766]
[1719994608714,0.2612,60967.0,60966.0,0.94520237]
[1719994609824,0.00284,60969.0,60968.0,0.25183907]
[1719994610096,0.00284,60969.0,60968.0,0.50553787]
[1719994610503,0.00284,60969.0,60968.0,0.2536988]
[1719994610712,0.27324,60969.0,60968.0,0.2536988]
[1719994611001,0.27324,60969.0,60968.0,0.2816988]
[1719994611143,0.48054,60969.0,60968.0,0.37290518]
[1719994611757,0.48054,60969.0,60968.0,0.2816988]
[1719994612781,0.48054,60969.0,60968.0,0.1882988]
[1719994613020,0.48054,60969.0,60968.0,0.2816988]
[1719994618047,0.48054,60969.0,60968.0,0.1882988]
[1719994619701,0.48054,60969.0,60968.0,0.2816988]
[1719994620461,0.56065451,60969.0,60968.0,0.1882988]
[1719994621692,0.52870093,60969.0,60968.0,0.1882988]
[1719994622465,0.56065451,60969.0,60968.0,0.1882988]
[1719994622923,0.56065451,60969.0,60968.0,0.028]
[1719994624078,0.83821512,60969.0,60968.0,0.028]
[1719994624313,0.4505,60953.0,60950.0,0.0934]
[1719994624512,0.14756061,60964.0,60951.0,0.1602988]
[1719994624513,0.4505,60954.0,60951.0,0.1602988]
[1719994624714,0.4505,60953.0,60951.0,0.1602988]
[1719994624941,0.0934,60961.0,60951.0,0.1602988]
[1719994624942,0.53061451,60952.0,60951.0,0.1602988]
[1719994625148,0.4505,60952.0,60951.0,0.1602988]
[1719994625465,0.53061451,60952.0,60951.0,0.1602988]
[1719994625664,0.4505,60952.0,60951.0,0.1742988]
[1719994626063,0.4505,60952.0,60951.0,0.1602988]
[1719994626812,0.4505,60952.0,60951.0,0.1742988]
[1719994627323,0.4505,60952.0,60951.0,0.1602988]
[1719994627639,0.4515,60952.0,60951.0,0.1732988]
[1719994627894,0.4515,60952.0,60951.0,0.1862988]
[1719994628098,0.4525,60952.0,60951.0,0.1862988]
[1719994634202,0.4525,60952.0,60951.0,0.2796988]
[1719994638560,0.2531,60952.0,60951.0,0.2796988]
[1719994639750,0.002,60952.0,60951.0,0.2796988]
[1719994639931,0.002,60952.0,60951.0,0.5796988]
[1719994640133,0.002,60952.0,60951.0,1.47850387]
[1719994640529,0.002,60952.0,60951.0,1.31443787]
[1719994640727,0.11587316,60966.0,60954.0,0.55183907]
[1719994640986,0.11587316,60966.0,60965.0,0.0934]
[1719994641139,0.21587316,60966.0,60965.0,0.2536988]
[1719994642727,0.21587316,60966.0,60965.0,0.28396566]
[1719994642850,0.21587316,60966.0,60965.0,0.2536988]
[1719994643255,0.21587316,60966.0,60965.0,0.2676988]
[1719994644051,0.21587316,60966.0,60965.0,0.2816988]
[1719994645164,0.00284,60969.0,60965.0,0.2816988]
[1719994645371,0.00284,60969.0,60968.0,0.0934]
[1719994645572,0.00284,60969.0,60968.0,0.2536988]
[1719994646017,0.00284,60969.0,60968.0,0.30724868]
[1719994646359,0.00284,60969.0,60968.0,0.35621847]
[1719994646559,0.00284,60969.0,60968.0,0.37021847]
[1719994647465,0.00284,60969.0,60968.0,0.61541847]
[1719994647605,0.00284,60969.0,60968.0,0.86725754]
[1719994647808,0.00284,60969.0,60968.0,0.88125754]
[1719994648030,0.00284,60969.0,60968.0,1.18125754]
[1719994648499,0.00284,60969.0,60968.0,1.19525754]
[1719994649231,0.00284,60969.0,60968.0,0.92941847]
[1719994649483,0.00284,60969.0,60968.0,0.94341847]
[1719994649719,0.00284,60969.0,60968.0,0.92941847]
[1719994649974,0.00284,60969.0,60968.0,0.91541847]
[1719994650203,0.00284,60969.0,60968.0,0.92941847]
[1719994650667,0.00284,60969.0,60968.0,0.88044868]
[1719994650920,0.00284,60969.0,60968.0,0.2536988]
[1719994651120,0.00284,60969.0,60968.0,0.2816988]
[1719994651667,0.00284,60969.0,60968.0,0.2676988]
[1719994651888,0.00284,60969.0,60968.0,0.1742988]
[1719994652316,0.00284,60969.0,60968.0,0.1602988]
[1719994652513,0.19914,60969.0,60968.0,0.1602988]
[1719994652723,0.19914,60969.0,60968.0,0.1742988]
[1719994652954,0.19914,60969.0,60968.0,0.1602988]
[1719994653157,0.19914,60969.0,60968.0,0.1882988]
[1719994653607,0.19914,60969.0,60968.0,0.1602988]
[1719994653782,0.19914,60969.0,60968.0,0.1742988]
[1719994653981,0.00284,60969.0,60968.0,0.21217751]
[1719994654604,0.00284,60969.0,60968.0,0.22617751]
[1719994655078,0.10284,60969.0,60968.0,0.22617751]
[1719994655467,0.10284,60969.0,60968.0,0.69637751]
[1719994659457,0.10284,60969.0,60968.0,0.99637751]
[1719994659657,0.10284,60969.0,60968.0,1.24821658]
[1719994659864,0.10284,60969.0,60968.0,0.99637751]
[1719994662408,0.10284,60969.0,60968.0,0.98237751]
[1719994662608,0.10284,60969.0,60968.0,0.96837751]
[1719994662808,0.10284,60969.0,60968.0,0.99637751]
[1719994663430,0.10284,60969.0,60968.0,0.99633607]
[1719994664186,0.10284,60969.0,60968.0,1.24817514]
[1719994664397,0.10284,60969.0,60968.0,0.99633607]
[1719994664599,0.10284,60969.0,60968.0,1.24817514]
[1719994666419,0.10284,60969.0,60968.0,1.23417514]
[1719994666788,0.10284,60969.0,60968.0,1.72623514]
[1719994667439,0.10284,60969.0,60968.0,1.74023514]
[1719994668394,0.10284,60969.0,60968.0,2.06827514]
[1719994668591,0.10284,60969.0,60968.0,2.07727514]
[1719994668792,0.10284,60969.0,60968.0,2.06327514]
[1719994669148,0.10284,60969.0,60968.0,2.07727514]
[1719994669559,0.10284,60969.0,60968.0,1.76323514]
[1719994670094,0.10284,60969.0,60968.0,2.17540198]
[1719994670392,0.09284,60969.0,60968.0,2.50344198]
[1719994672868,0.09284,60969.0,60968.0,2.17540198]
[1719994673232,0.09284,60969.0,60968.0,1.84736198]
[1719994673389,0.09284,60969.0,60968.0,2.17540198]
[1719994673905,0.09284,60969.0,60968.0,2.26860198]
[1719994675691,0.09204619,60969.0,60968.0,2.26860198]
[1719994678145,0.09204619,60969.0,60968.0,2.25460198]
[1719994679319,0.09204619,60969.0,60968.0,2.26860198]
[1719994679490,0.05842364,60969.0,60968.0,2.58264198]
[1719994679894,0.05842364,60969.0,60968.0,2.59664198]
[1719994680296,0.05842364,60969.0,60968.0,2.26860198]
[1719994682366,0.05842364,60969.0,60968.0,2.30152198]
[1719994682841,0.05842364,60969.0,60968.0,2.20832198]
[1719994683064,0.05842364,60969.0,60968.0,2.27352198]
[1719994683457,0.05842364,60969.0,60968.0,2.30152198]
[1719994683663,0.05842364,60969.0,60968.0,2.28752198]
[1719994684019,0.05842364,60969.0,60968.0,2.30152198]
[1719994684831,0.05842364,60969.0,60968.0,2.28752198]
[1719994685088,0.05842364,60969.0,60968.0,2.30152198]
[1719994685596,0.05842364,60969.0,60968.0,2.27352198]
[1719994685892,0.05842364,60969.0,60968.0,1.95948198]
[1719994686681,0.05842364,60969.0,60968.0,1.97348198]
[1719994688677,0.05527103,60969.0,60968.0,1.97440598]
[1719994688841,0.05611103,60969.0,60968.0,2.30244598]
[1719994689223,0.06433103,60969.0,60968.0,2.30244598]
[1719994691853,0.06433103,60969.0,60968.0,2.63048598]
[1719994692274,0.00837,60970.0,60969.0,2.22448791]
[1719994692612,0.00837,60970.0,60969.0,2.61711956]
[1719994693509,0.00837,60970.0,60969.0,2.63111956]
[1719994694462,0.00837,60970.0,60969.0,2.64511956]
[1719994695693,0.10837,60970.0,60969.0,2.64511956]
[1719994696508,0.00838,60974.0,60973.0,1.78401491]
[1719994696832,0.00838,60974.0,60973.0,2.50871371]
[1719994697412,0.00838,60976.0,60975.0,1.70307291]
[1719994697589,0.3919,60988.0,60979.0,1.45591791]
[1719994697789,0.1887,60988.0,60979.0,2.0339865]
[1719994697995,0.2032,60990.0,60979.0,2.35835441]
[1719994698236,0.2032,60990.0,60979.0,2.68633541]
[1719994698594,0.1987,60991.0,60979.0,2.68633541]
[1719994699454,0.1987,60991.0,60979.0,2.70033541]
[1719994699660,0.1987,60991.0,60979.0,2.68633541]
[1719994700040,0.2032,60987.0,60979.0,2.70033541]
[1719994700640,0.2032,60987.0,60979.0,2.71433541]
[1719994702882,0.2032,60987.0,60979.0,2.66536562]
[1719994703424,0.02028167,60980.0,60979.0,2.66536562]
[1719994704185,0.2032,60990.0,60985.0,0.55183907]
[1719994704541,0.2032,60990.0,60985.0,1.35813958]
[1719994704687,0.2032,60990.0,60985.0,1.26493958]
[1719994704891,0.2032,60990.0,60985.0,1.35813958]
[1719994705293,0.2032,60990.0,60985.0,1.37213958]